fUST/lending_fUST_20250204
["ID","MTS","AMOUNT","RATE_DAILY","PERIOD"]
[351491888,1738601440993,-955.87,0.00016849,2]
[351491890,1738601441003,-500.0,0.00016849,2]
[351491893,1738601441013,-500.0,0.00016849,2]
[351491895,1738601441022,-500.0,0.00016849,2]
[351491897,1738601441032,-500.0,0.00016849,2]
[351491899,1738601441043,-500.0,0.00016849,2]
[351491901,1738601441053,-510.11,0.00016849,2]
[351491903,1738601441064,-500.0,0.00016849,2]
[351491905,1738601441074,-500.0,0.00016849,2]
[351491907,1738601441084,-500.0,0.00016849,2]
[351491909,1738601441093,-500.0,0.00016849,2]
[351491911,1738601441103,-500.0,0.00016849,2]
[351491913,1738601441112,-500.0,0.00016849,2]
[351491915,1738601441122,-500.0,0.00016849,2]
[351491917,1738601441132,-500.0,0.00016849,2]
[351491919,1738601441143,-4802.63,0.00016849,2]
[351491921,1738601441153,-500.0,0.00016849,2]
[351491923,1738601441163,-763.28,0.00016849,2]
[351491925,1738601441174,-500.0,0.00016849,2]
[351491926,1738601441185,-645.26,0.00016849,2]
[351491928,1738601441197,-515.14,0.00016849,2]
[351491929,1738601441208,-500.0,0.00016849,2]
[351491930,1738601441219,-1271.7,0.00016849,2]
[351491931,1738601441232,-6583.25,0.00016849,2]
[351491932,1738601441242,-500.0,0.00016849,2]
[351491933,1738601441254,-637.05,0.00016849,2]
[351491934,1738601441264,-1138.81,0.00016849,2]
[351491935,1738601441275,-500.0,0.00016849,2]
[351491936,1738601441285,-1941.58,0.00016849,2]
[351491937,1738601441296,-500.0,0.00016849,2]
[351491938,1738601441307,-500.0,0.00016849,2]
[351491939,1738601441318,-500.0,0.00016849,2]
[351491940,1738601441328,-500.0,0.00016849,2]
[351491941,1738601441339,-12695.47,0.00016849,2]
[351491942,1738601441349,-654.32,0.00016849,2]
[351491943,1738601441359,-684.76,0.00016849,2]
[351491944,1738601441370,-713.52,0.00016849,2]
[351491945,1738601441380,-500.0,0.00016849,2]
[351491946,1738601441394,-500.0,0.00016849,2]
[351491947,1738601441404,-1102.04,0.00016849,2]
[351491948,1738601441414,-307.42456671,0.00016849,2]
[351491949,1738601441424,-3146.67,0.00016849,2]
[351491950,1738601441434,-1402.15,0.00016849,2]
[351491951,1738601441444,-500.0,0.00016849,2]
[351491952,1738601441453,-500.0,0.00016849,2]
[351491953,1738601441463,-500.0,0.00016849,2]
[351491954,1738601441473,-700.57,0.00016849,2]
[351491955,1738601441483,-1503.61,0.00016849,2]
[351491956,1738601441493,-500.0,0.00016849,2]
[351491957,1738601441502,-561.58,0.00016849,2]
[351491958,1738601441509,-3432.57,0.00016849,2]
[351491959,1738601441517,-593.81,0.00016849,2]
[351491960,1738601441526,-960.23,0.00016849,2]
[351491961,1738601441535,-5883.49,0.00016849,2]
[351491962,1738601441543,-500.0,0.00016849,2]
[351491963,1738601441552,-1597.11,0.00016849,2]
[351491964,1738601441561,-500.0,0.00016849,2]
[351491965,1738601441570,-1295.64,0.00016849,2]
[351491966,1738601441580,-500.0,0.00016849,2]
[351491967,1738601441588,-1743.28,0.00016849,2]
[351491968,1738601441597,-537.0,0.000169,2]
[351491969,1738601441605,-1994.0,0.000169,2]
[351491970,1738601441613,-2299.0,0.000169,2]
[351491971,1738601441622,-396.0,0.000169,2]
[351491972,1738601441630,-212.54980146,0.00016932,2]
[351491973,1738601441641,-153.0,0.0001694,2]
[351491974,1738601441650,-153.0,0.0001694,2]
[351491975,1738601441659,-153.0,0.0001694,2]
[351491976,1738601441668,-153.0,0.0001694,2]
[351491977,1738601441677,-153.0,0.0001694,2]
[351491978,1738601441685,-153.0,0.0001694,2]
[351491979,1738601441694,-153.0,0.0001694,2]
[351491980,1738601441703,-153.0,0.0001694,2]
[351491981,1738601441712,-153.0,0.0001694,2]
[351491982,1738601441721,-500.0,0.00016986,2]
[351491983,1738601441731,-955.87,0.00016986,2]
[351491984,1738601441741,-500.0,0.00016986,2]
[351491985,1738601441750,-500.0,0.00016986,2]
[351491986,1738601441760,-500.0,0.00016986,2]
[351491987,1738601441769,-457.36680973,0.00016986,2]
[351491988,1738601441778,-500.0,0.00016986,2]
[351491989,1738601441787,-510.11,0.00016986,2]
[351491990,1738601441797,-500.0,0.00016986,2]
[351491991,1738601441807,-500.0,0.00016986,2]
[351491992,1738601441817,-500.0,0.00016986,2]
[351491993,1738601441826,-500.0,0.00016986,2]
[351491994,1738601441836,-500.0,0.00016986,2]
[351491995,1738601441846,-500.0,0.00016986,2]
[351491996,1738601441855,-500.0,0.00016986,2]
[351491997,1738601441865,-500.0,0.00016986,2]
[351491998,1738601441875,-4802.63,0.00016986,2]
[351491999,1738601441889,-301.59226312,0.00016986,2]
[351492000,1738601441899,-763.28,0.00016986,2]
[351492001,1738601441909,-500.0,0.00016986,2]
[351492002,1738601441919,-645.26,0.00016986,2]
[351492003,1738601441928,-515.14,0.00016986,2]
[351492004,1738601441938,-500.0,0.00016986,2]
[351492005,1738601441948,-1271.7,0.00016986,2]
[351492006,1738601441957,-6583.25,0.00016986,2]
[351492007,1738601441966,-500.0,0.00016986,2]
[351492008,1738601441975,-637.05,0.00016986,2]
[351492009,1738601441984,-1138.81,0.00016986,2]
[351492010,1738601441994,-500.0,0.00016986,2]
[351492012,1738601442003,-1941.58,0.00016986,2]
[351492014,1738601442012,-500.0,0.00016986,2]
[351492015,1738601442023,-500.0,0.00016986,2]
[351492016,1738601442032,-500.0,0.00016986,2]
[351492017,1738601442041,-500.0,0.00016986,2]
[351492018,1738601442050,-12695.47,0.00016986,2]
[351492019,1738601442060,-654.32,0.00016986,2]
[351492020,1738601442069,-684.76,0.00016986,2]
[351492021,1738601442079,-713.52,0.00016986,2]
[351492022,1738601442089,-500.0,0.00016986,2]
[351492023,1738601442098,-500.0,0.00016986,2]
[351492024,1738601442108,-1102.04,0.00016986,2]
[351492025,1738601442117,-3146.67,0.00016986,2]
[351492026,1738601442125,-1402.15,0.00016986,2]
[351492027,1738601442136,-500.0,0.00016986,2]
[351492028,1738601442145,-500.0,0.00016986,2]
[351492029,1738601442155,-500.0,0.00016986,2]
[351492030,1738601442164,-700.57,0.00016986,2]
[351492031,1738601442174,-1503.61,0.00016986,2]
[351492032,1738601442184,-500.0,0.00016986,2]
[351492033,1738601442194,-561.58,0.00016986,2]
[351492034,1738601442212,-3432.57,0.00016986,2]
[351492035,1738601442224,-593.81,0.00016986,2]
[351492036,1738601442234,-960.23,0.00016986,2]
[351492037,1738601442244,-5883.49,0.00016986,2]
[351492038,1738601442255,-500.0,0.00016986,2]
[351492039,1738601442264,-1597.11,0.00016986,2]
[351492040,1738601442274,-500.0,0.00016986,2]
[351492041,1738601442285,-1295.64,0.00016986,2]
[351492042,1738601442296,-500.0,0.00016986,2]
[351492043,1738601442306,-1743.28,0.00016986,2]
[351492044,1738601442315,-235.85497941,0.00017006,2]
[351492045,1738601442325,-700.0,0.00017068,2]
[351492046,1738601442335,-13099.03041793,0.00017093,2]
[351492047,1738601442345,-500.0,0.00017123,2]
[351492048,1738601442354,-955.87,0.00017123,2]
[351492049,1738601442364,-500.0,0.00017123,2]
[351492050,1738601442374,-500.0,0.00017123,2]
[351492051,1738601442384,-500.0,0.00017123,2]
[351492052,1738601442394,-500.0,0.00017123,2]
[351492053,1738601442403,-510.11,0.00017123,2]
[351492054,1738601442413,-500.0,0.00017123,2]
[351492055,1738601442422,-500.0,0.00017123,2]
[351492056,1738601442432,-500.0,0.00017123,2]
[351492057,1738601442441,-500.0,0.00017123,2]
[351492058,1738601442451,-500.0,0.00017123,2]
[351492059,1738601442460,-279.62031865,0.00017123,2]
[351492060,1738601442471,-500.0,0.00017123,2]
[351492061,1738601442481,-4802.63,0.00017123,2]
[351492062,1738601442490,-763.28,0.00017123,2]
[351492063,1738601442500,-500.0,0.00017123,2]
[351492064,1738601442509,-645.26,0.00017123,2]
[351492065,1738601442519,-515.14,0.00017123,2]
[351492066,1738601442528,-500.0,0.00017123,2]
[351492067,1738601442537,-1271.7,0.00017123,2]
[351492068,1738601442547,-6583.25,0.00017123,2]
[351492069,1738601442557,-500.0,0.00017123,2]
[351492070,1738601442567,-637.05,0.00017123,2]
[351492071,1738601442577,-1138.81,0.00017123,2]
[351492073,1738601442587,-500.0,0.00017123,2]
[351492075,1738601442596,-1941.58,0.00017123,2]
[351492077,1738601442607,-500.0,0.00017123,2]
[351492079,1738601442617,-500.0,0.00017123,2]
[351492081,1738601442627,-500.0,0.00017123,2]
[351492083,1738601442639,-500.0,0.00017123,2]
[351492084,1738601442648,-12695.47,0.00017123,2]
[351492085,1738601442657,-654.32,0.00017123,2]
[351492086,1738601442666,-684.76,0.00017123,2]
[351492088,1738601442676,-713.52,0.00017123,2]
[351492090,1738601442685,-500.0,0.00017123,2]
[351492091,1738601442695,-500.0,0.00017123,2]
[351492092,1738601442704,-1102.04,0.00017123,2]
[351492093,1738601442714,-3146.67,0.00017123,2]
[351492094,1738601442723,-1402.15,0.00017123,2]
[351492095,1738601442732,-500.0,0.00017123,2]
[351492097,1738601442742,-500.0,0.00017123,2]
[351492099,1738601442752,-700.57,0.00017123,2]
[351492100,1738601442762,-1503.61,0.00017123,2]
[351492101,1738601442771,-500.0,0.00017123,2]
[351492102,1738601442781,-561.58,0.00017123,2]
[351492103,1738601442791,-3432.57,0.00017123,2]
[351492104,1738601442801,-593.81,0.00017123,2]
[351492105,1738601442810,-960.23,0.00017123,2]
[351492106,1738601442819,-5883.49,0.00017123,2]
[351492107,1738601442829,-500.0,0.00017123,2]
[351492109,1738601442839,-1597.11,0.00017123,2]
[351492110,1738601442848,-500.0,0.00017123,2]
[351492111,1738601442857,-1295.64,0.00017123,2]
[351492112,1738601442867,-500.0,0.00017123,2]
[351492113,1738601442876,-1743.28,0.00017123,2]
[351492114,1738601442888,-235.85497941,0.00017203,2]
[351492115,1738601442899,-823.04434729,0.00017204,2]
[351492116,1738601442909,-1000.0,0.00017205,2]
[351492117,1738601442919,-496.42884982,0.00017259,2]
[351492118,1738601442930,-500.0,0.0001726,2]
[351492119,1738601442940,-955.87,0.0001726,2]
[351492120,1738601442950,-500.0,0.0001726,2]
[351492121,1738601442960,-500.0,0.0001726,2]
[351492122,1738601442970,-500.0,0.0001726,2]
[351492123,1738601442981,-500.0,0.0001726,2]
[351492124,1738601442992,-510.11,0.0001726,2]
[351492125,1738601443005,-500.0,0.0001726,2]
[351492126,1738601443015,-500.0,0.0001726,2]
[351492128,1738601443026,-500.0,0.0001726,2]
[351492129,1738601443036,-500.0,0.0001726,2]
[351492131,1738601443046,-500.0,0.0001726,2]
[351492132,1738601443057,-500.0,0.0001726,2]
[351492134,1738601443068,-4802.63,0.0001726,2]
[351492136,1738601443079,-763.28,0.0001726,2]
[351492137,1738601443089,-500.0,0.0001726,2]
[351492138,1738601443099,-645.26,0.0001726,2]
[351492141,1738601443112,-515.14,0.0001726,2]
[351492143,1738601443122,-500.0,0.0001726,2]
[351492146,1738601443135,-1271.7,0.0001726,2]
[351492148,1738601443148,-6583.25,0.0001726,2]
[351492150,1738601443159,-500.0,0.0001726,2]
[351492153,1738601443169,-637.05,0.0001726,2]
[351492156,1738601443179,-1138.81,0.0001726,2]
[351492158,1738601443189,-500.0,0.0001726,2]
[351492160,1738601443202,-1941.58,0.0001726,2]
[351492163,1738601443214,-500.0,0.0001726,2]
[351492166,1738601443223,-500.0,0.0001726,2]
[351492169,1738601443236,-500.0,0.0001726,2]
[351492172,1738601443245,-500.0,0.0001726,2]
[351492174,1738601443255,-12695.47,0.0001726,2]
[351492177,1738601443264,-654.32,0.0001726,2]
[351492180,1738601443275,-684.76,0.0001726,2]
[351492181,1738601443284,-713.52,0.0001726,2]
[351492183,1738601443294,-500.0,0.0001726,2]
[351492184,1738601443304,-500.0,0.0001726,2]
[351492186,1738601443314,-1102.04,0.0001726,2]
[351492188,1738601443324,-3146.67,0.0001726,2]
[351492190,1738601443334,-1402.15,0.0001726,2]
[351492191,1738601443343,-500.0,0.0001726,2]
[351492193,1738601443353,-500.0,0.0001726,2]
[351492195,1738601443363,-700.57,0.0001726,2]
[351492196,1738601443372,-1503.61,0.0001726,2]
[351492198,1738601443382,-500.0,0.0001726,2]
[351492200,1738601443397,-561.58,0.0001726,2]
[351492201,1738601443406,-3432.57,0.0001726,2]
[351492203,1738601443417,-593.81,0.0001726,2]
[351492204,1738601443427,-960.23,0.0001726,2]
[351492205,1738601443436,-5883.49,0.0001726,2]
[351492206,1738601443446,-500.0,0.0001726,2]
[351492207,1738601443455,-1597.11,0.0001726,2]
[351492208,1738601443465,-500.0,0.0001726,2]
[351492210,1738601443475,-1295.64,0.0001726,2]
[351492212,1738601443485,-500.0,0.0001726,2]
[351492214,1738601443495,-1743.28,0.0001726,2]
[351492217,1738601443504,-600.0,0.0001728,2]
[351492220,1738601443515,-280.0,0.0001739,2]
[351492223,1738601443524,-500.0,0.00017397,2]
[351492226,1738601443534,-955.87,0.00017397,2]
[351492229,1738601443544,-500.0,0.00017397,2]
[351492232,1738601443554,-250.04938095,0.00017397,2]
[351492234,1738601443564,-500.0,0.00017397,2]
[351492237,1738601443574,-500.0,0.00017397,2]
[351492240,1738601443583,-510.11,0.00017397,2]
[351492243,1738601443593,-500.0,0.00017397,2]
[351492246,1738601443603,-500.0,0.00017397,2]
[351492250,1738601443613,-500.0,0.00017397,2]
[351492253,1738601443623,-500.0,0.00017397,2]
[351492256,1738601443632,-161.70910176,0.00017397,2]
[351492259,1738601443647,-500.0,0.00017397,2]
[351492262,1738601443656,-4802.63,0.00017397,2]
[351492265,1738601443666,-763.28,0.00017397,2]
[351492268,1738601443676,-500.0,0.00017397,2]
[351492271,1738601443686,-645.26,0.00017397,2]
[351492274,1738601443696,-515.14,0.00017397,2]
[351492297,1738601443797,-500.0,0.00017397,2]
[351492301,1738601443818,-1271.7,0.00017397,2]
[351492304,1738601443828,-6583.25,0.00017397,2]
[351492307,1738601443838,-500.0,0.00017397,2]
[351492310,1738601443848,-637.05,0.00017397,2]
[351492313,1738601443858,-1138.81,0.00017397,2]
[351492316,1738601443867,-500.0,0.00017397,2]
[351492319,1738601443877,-1941.58,0.00017397,2]
[351492323,1738601443893,-500.0,0.00017397,2]
[351492326,1738601443903,-500.0,0.00017397,2]
[351492329,1738601443913,-500.0,0.00017397,2]
[351492332,1738601443923,-500.0,0.00017397,2]
[351492335,1738601443932,-12695.47,0.00017397,2]
[351492337,1738601443942,-654.32,0.00017397,2]
[351492340,1738601443951,-684.76,0.00017397,2]
[351492343,1738601443961,-713.52,0.00017397,2]
[351492346,1738601443971,-500.0,0.00017397,2]
[351492349,1738601443981,-500.0,0.00017397,2]
[351492352,1738601443991,-1102.04,0.00017397,2]
[351492355,1738601444000,-3146.67,0.00017397,2]
[351492358,1738601444010,-1402.15,0.00017397,2]
[351492361,1738601444020,-500.0,0.00017397,2]
[351492364,1738601444029,-500.0,0.00017397,2]
[351492367,1738601444039,-700.57,0.00017397,2]
[351492370,1738601444048,-1503.61,0.00017397,2]
[351492373,1738601444058,-500.0,0.00017397,2]
[351492376,1738601444067,-561.58,0.00017397,2]
[351492378,1738601444076,-3432.57,0.00017397,2]
[351492380,1738601444085,-593.81,0.00017397,2]
[351492382,1738601444095,-960.23,0.00017397,2]
[351492385,1738601444104,-5883.49,0.00017397,2]
[351492388,1738601444113,-405.2232236,0.00017397,2]
[351492391,1738601444122,-1597.11,0.00017397,2]
[351492394,1738601444131,-500.0,0.00017397,2]
[351492397,1738601444145,-1295.64,0.00017397,2]
[351492400,1738601444155,-500.0,0.00017397,2]
[351492403,1738601444164,-1743.28,0.00017397,2]
[351492406,1738601444174,-469.92467079,0.000174,2]
[351492409,1738601444184,-235.85497941,0.000174,2]
[351492412,1738601444194,-500.0,0.00017405,2]
[351492415,1738601444204,-274.70531931,0.00017408,2]
[351492418,1738601444215,-500.0,0.00017408,2]
[351492421,1738601444228,-500.0,0.00017408,2]
[351492424,1738601444238,-161.83012279,0.00017423,2]
[351492427,1738601444251,-469.92467078,0.00017456,2]
[351492430,1738601444265,-768.6559825,0.0001746,2]
[351492432,1738601444274,-493.93833945,0.00017473,2]
[351492435,1738601444284,-53313.25637929,0.000175,5]
[351492519,1738601444701,-46394.83712798,0.000175,5]
[351492521,1738601444710,-11165.01077346,0.000175,5]
[351492523,1738601444719,-38005.03185219,0.000175,15]
[351493941,1738601475036,192.838399,0.00013699,2]
[351493944,1738601615471,351.541271,0.00013973,2]
[351493947,1738601632967,161.734703,0.00015012,2]
[351494752,1738602208096,7511.37652415,0.00016,10]
[351494778,1738602442315,346.578273,0.00013973,2]
[351494780,1738602465842,772.45,0.00010959,2]
[351495773,1738602632815,-407.71121854,0.00015083,2]
[351495775,1738602632826,-361.042,0.00015408,2]
[351495777,1738602632835,-700.0,0.00015972,2]
[351495778,1738602632844,-156.17108919,0.00016338,2]
[351495780,1738602632854,-302.0,0.00016428,2]
[351495781,1738602632863,-300.0,0.00016428,2]
[351495782,1738602632873,-13613.11675007,0.00016429,2]
[351495783,1738602632881,-505.08567262,0.00016438,2]
[351495784,1738602632890,-287.00379717,0.00016438,2]
[351495785,1738602632899,-500.0,0.00016438,2]
[351495786,1738602632908,-500.0,0.00016438,2]
[351495787,1738602632918,-500.0,0.00016438,2]
[351495788,1738602632927,-500.0,0.00016438,2]
[351495789,1738602632937,-881.73,0.00016438,2]
[351495790,1738602632946,-500.0,0.00016438,2]
[351495791,1738602632957,-396.37727731,0.00016438,2]
[351495792,1738602632966,-500.0,0.00016438,2]
[351495793,1738602632976,-500.0,0.00016438,2]
[351495794,1738602632985,-500.0,0.00016438,2]
[351495795,1738602632996,-500.0,0.00016438,2]
[351495796,1738602633005,-500.0,0.00016438,2]
[351495797,1738602633015,-500.0,0.00016438,2]
[351495798,1738602633026,-500.0,0.00016438,2]
[351495799,1738602633035,-500.0,0.00016438,2]
[351495800,1738602633045,-500.0,0.00016438,2]
[351495801,1738602633056,-500.0,0.00016438,2]
[351495802,1738602633066,-500.0,0.00016438,2]
[351495803,1738602633075,-500.0,0.00016438,2]
[351495804,1738602633085,-500.0,0.00016438,2]
[351495805,1738602633094,-4402.41,0.00016438,2]
[351495806,1738602633104,-500.0,0.00016438,2]
[351495807,1738602633113,-500.0,0.00016438,2]
[351495808,1738602633123,-500.0,0.00016438,2]
[351495809,1738602633132,-500.0,0.00016438,2]
[351495810,1738602633142,-500.0,0.00016438,2]
[351495811,1738602633152,-880.21,0.00016438,2]
[351495812,1738602633162,-699.67,0.00016438,2]
[351495813,1738602633172,-500.0,0.00016438,2]
[351495814,1738602633181,-1187.67,0.00016438,2]
[351495815,1738602633192,-2386.64,0.00016438,2]
[351495816,1738602633202,-500.0,0.00016438,2]
[351495817,1738602633212,-500.0,0.00016438,2]
[351495818,1738602633222,-591.49,0.00016438,2]
[351495819,1738602633233,-5393.2,0.00016438,2]
[351495820,1738602633243,-500.0,0.00016438,2]
[351495821,1738602633252,-500.0,0.00016438,2]
[351495822,1738602633262,-500.0,0.00016438,2]
[351495823,1738602633272,-1165.72,0.00016438,2]
[351495824,1738602633282,-500.0,0.00016438,2]
[351495825,1738602633292,-500.0,0.00016438,2]
[351495826,1738602633301,-583.96,0.00016438,2]
[351495827,1738602633311,-500.0,0.00016438,2]
[351495828,1738602633320,-500.0,0.00016438,2]
[351495829,1738602633330,-500.0,0.00016438,2]
[351495830,1738602633339,-1779.78,0.00016438,2]
[351495831,1738602633349,-500.0,0.00016438,2]
[351495832,1738602633360,-500.0,0.00016438,2]
[351495833,1738602633369,-6034.65,0.00016438,2]
[351495834,1738602633379,-500.0,0.00016438,2]
[351495835,1738602633389,-599.8,0.00016438,2]
[351495836,1738602633399,-11658.54,0.00016438,2]
[351495837,1738602633409,-500.0,0.00016438,2]
[351495838,1738602633418,-500.0,0.00016438,2]
[351495839,1738602633428,-500.0,0.00016438,2]
[351495840,1738602633437,-1095.58,0.00016438,2]
[351495841,1738602633450,-501.0534461,0.00016438,2]
[351495842,1738602633460,-500.0,0.00016438,2]
[351495843,1738602633470,-500.0,0.00016438,2]
[351495844,1738602633480,-627.7,0.00016438,2]
[351495845,1738602633491,-500.0,0.00016438,2]
[351495846,1738602633501,-500.0,0.00016438,2]
[351495847,1738602633511,-500.0,0.00016438,2]
[351495848,1738602633523,-500.0,0.00016438,2]
[351495849,1738602633534,-654.06,0.00016438,2]
[351495850,1738602633543,-500.0,0.00016438,2]
[351495851,1738602633553,-507.25171621,0.00016438,2]
[351495852,1738602633563,-500.0,0.00016438,5]
[351495853,1738602633573,-500.0,0.00016438,2]
[351495854,1738602633583,-500.0,0.00016438,2]
[351495855,1738602633592,-500.0,0.00016438,2]
[351495856,1738602633603,-500.0,0.00016438,2]
[351495857,1738602633615,-500.0,0.00016438,2]
[351495858,1738602633624,-500.0,0.00016438,2]
[351495859,1738602633634,-1440.96,0.00016438,2]
[351495860,1738602633643,-1010.2,0.00016438,2]
[351495861,1738602633655,-500.0,0.00016438,2]
[351495862,1738602633664,-500.0,0.00016438,2]
[351495863,1738602633673,-500.0,0.00016438,2]
[351495864,1738602633683,-500.0,0.00016438,2]
[351495865,1738602633694,-526.88564986,0.00016438,2]
[351495866,1738602633703,-500.0,0.00016438,2]
[351495867,1738602633713,-500.0,0.00016438,2]
[351495868,1738602633723,-3156.02,0.00016438,2]
[351495869,1738602633733,-500.0,0.00016438,2]
[351495870,1738602633742,-500.0,0.00016438,2]
[351495871,1738602633752,-500.0,0.00016438,2]
[351495872,1738602633761,-597.82,0.00016438,2]
[351495873,1738602633773,-3442.28,0.00016438,2]
[351495874,1738602633784,-500.0,0.00016438,2]
[351495875,1738602633793,-500.0,0.00016438,2]
[351495876,1738602633803,-500.0,0.00016438,2]
[351495877,1738602633813,-506.35768268,0.00016438,2]
[351495878,1738602633823,-500.0,0.00016438,2]
[351495879,1738602633833,-500.0,0.00016438,2]
[351495880,1738602633842,-1405.16,0.00016438,2]
[351495881,1738602633852,-500.0,0.00016438,2]
[351495882,1738602633861,-500.0,0.00016438,2]
[351495883,1738602633871,-581.29069021,0.00016438,2]
[351495884,1738602633881,-500.0,0.00016438,2]
[351495885,1738602633891,-500.0,0.00016438,2]
[351495886,1738602633901,-590.7,0.00016438,2]
[351495887,1738602633911,-500.0,0.00016438,2]
[351495888,1738602633921,-500.0,0.00016438,2]
[351495889,1738602633931,-500.0,0.00016438,2]
[351495890,1738602633940,-1748.11,0.00016438,2]
[351495891,1738602633949,-500.0,0.00016438,2]
[351495892,1738602633959,-500.0,0.00016438,2]
[351495893,1738602633969,-259.37727445,0.00016438,2]
[351495894,1738602633979,-500.0,0.00016438,2]
[351495895,1738602633990,-600.99218931,0.00016438,2]
[351495896,1738602634000,-493.45439239,0.00016438,2]
[351495897,1738602634010,-1592.27,0.00016438,2]
[351495898,1738602634022,-1626.03245193,0.00016438,2]
[351495899,1738602634031,-156.17108917,0.00016475,2]
[351495900,1738602634041,-4128.611693,0.000165,2]
[351495901,1738602634051,-500.0,0.00016575,2]
[351495902,1738602634061,-500.0,0.00016575,2]
[351495903,1738602634070,-881.73,0.00016575,2]
[351495904,1738602634079,-500.0,0.00016575,2]
[351495905,1738602634089,-500.0,0.00016575,2]
[351495906,1738602634099,-457.36680973,0.00016575,2]
[351495907,1738602634108,-500.0,0.00016575,2]
[351495908,1738602634118,-500.0,0.00016575,2]
[351495909,1738602634128,-307.42456671,0.00016575,2]
[351495910,1738602634138,-500.0,0.00016575,2]
[351495911,1738602634147,-500.0,0.00016575,2]
[351495912,1738602634157,-500.0,0.00016575,2]
[351495913,1738602634167,-500.0,0.00016575,2]
[351495914,1738602634178,-500.0,0.00016575,2]
[351495915,1738602634188,-500.0,0.00016575,2]
[351495916,1738602634198,-500.0,0.00016575,2]
[351495917,1738602634208,-4402.41,0.00016575,2]
[351495918,1738602634218,-500.0,0.00016575,2]
[351495919,1738602634228,-500.0,0.00016575,2]
[351495920,1738602634238,-500.0,0.00016575,2]
[351495921,1738602634248,-500.0,0.00016575,2]
[351495922,1738602634258,-500.0,0.00016575,2]
[351495923,1738602634270,-880.21,0.00016575,2]
[351495924,1738602634281,-699.67,0.00016575,2]
[351495925,1738602634291,-500.0,0.00016575,2]
[351495926,1738602634302,-1187.67,0.00016575,2]
[351495927,1738602634312,-2386.64,0.00016575,2]
[351495928,1738602634322,-500.0,0.00016575,2]
[351495929,1738602634332,-500.0,0.00016575,2]
[351495930,1738602634343,-591.49,0.00016575,2]
[351495931,1738602634353,-5393.2,0.00016575,2]
[351495932,1738602634364,-500.0,0.00016575,2]
[351495933,1738602634374,-500.0,0.00016575,2]
[351495934,1738602634386,-500.0,0.00016575,2]
[351495935,1738602634396,-1165.72,0.00016575,2]
[351495936,1738602634407,-500.0,0.00016575,2]
[351495937,1738602634418,-583.96,0.00016575,2]
[351495938,1738602634428,-500.0,0.00016575,2]
[351495939,1738602634439,-500.0,0.00016575,2]
[351495940,1738602634449,-500.0,0.00016575,2]
[351495941,1738602634459,-1779.78,0.00016575,2]
[351495942,1738602634470,-6034.65,0.00016575,2]
[351495943,1738602634480,-599.8,0.00016575,2]
[351495944,1738602634490,-11658.54,0.00016575,2]
[351495945,1738602634500,-500.0,0.00016575,2]
[351495946,1738602634511,-500.0,0.00016575,2]